fUSD/lending_fUSD_20250414
["ID","MTS","AMOUNT","RATE_DAILY","PERIOD"]
[357935339,1744601438172,-500.0,0.00019178,2]
[357935340,1744601438182,-542.24728583,0.00019178,2]
[357935341,1744601438190,-500.0,0.00019178,2]
[357935342,1744601438199,-500.0,0.00019178,2]
[357935343,1744601438208,-500.0,0.00019178,2]
[357935344,1744601438219,-500.0,0.00019178,2]
[357935345,1744601438228,-500.40265757,0.00019178,2]
[357935346,1744601438238,-500.0,0.00019178,2]
[357935347,1744601438249,-500.0,0.00019178,2]
[357935348,1744601438259,-500.0,0.00019178,2]
[357935349,1744601438269,-500.0,0.00019178,2]
[357935350,1744601438279,-500.0,0.00019178,2]
[357935351,1744601438288,-500.0,0.00019178,2]
[357935353,1744601438298,-500.0,0.00019178,2]
[357935355,1744601438307,-501.56806034,0.00019178,2]
[357935357,1744601438317,-500.0,0.00019178,2]
[357935359,1744601438326,-500.0,0.00019178,2]
[357935361,1744601438336,-526.43490027,0.00019178,2]
[357935363,1744601438346,-504.71807554,0.00019178,2]
[357935365,1744601438359,-500.0,0.00019178,2]
[357935367,1744601438369,-502.95819699,0.00019178,2]
[357935369,1744601438378,-508.42423475,0.00019178,2]
[357935371,1744601438388,-500.0,0.00019178,2]
[357935373,1744601438398,-500.0,0.00019178,2]
[357935375,1744601438407,-500.0,0.00019178,2]
[357935377,1744601438417,-511.05145884,0.00019178,2]
[357935379,1744601438427,-500.0,0.00019178,2]
[357935381,1744601438436,-514.79175643,0.00019178,2]
[357935383,1744601438446,-500.0,0.00019178,2]
[357935385,1744601438455,-513.13795674,0.00019178,2]
[357935387,1744601438465,-510.54374135,0.00019178,2]
[357935389,1744601438474,-511.89480824,0.00019178,2]
[357935391,1744601438484,-499.55691576,0.00019178,2]
[357935393,1744601438493,-505.83396544,0.00019178,2]
[357935395,1744601438503,-500.0,0.00019178,2]
[357935397,1744601438512,-500.0,0.00019178,2]
[357935399,1744601438521,-515.27268734,0.00019178,2]
[357935401,1744601438531,-500.0,0.00019178,2]
[357935403,1744601438540,-517.46010903,0.00019178,2]
[357935405,1744601438550,-500.0,0.00019178,2]
[357935407,1744601438561,-500.0,0.00019178,2]
[357935409,1744601438570,-500.0,0.00019178,2]
[357935411,1744601438579,-514.04058335,0.00019178,2]
[357935413,1744601438589,-500.0,0.00019178,2]
[357935415,1744601438599,-500.0,0.00019178,2]
[357935417,1744601438608,-500.0,0.00019178,2]
[357935419,1744601438617,-501.85629369,0.00019178,2]
[357935421,1744601438627,-510.25275025,0.00019178,2]
[357935423,1744601438637,-500.0,0.00019178,2]
[357935425,1744601438646,-500.0,0.00019178,2]
[357935427,1744601438656,-531.89,0.00019178,2]
[357935429,1744601438666,-503.816887,0.00019178,2]
[357935431,1744601438675,-500.0,0.00019178,2]
[357935433,1744601438685,-500.0,0.00019178,2]
[357935435,1744601438694,-513.14855805,0.00019178,2]
[357935437,1744601438704,-500.0,0.00019178,2]
[357935439,1744601438713,-500.0,0.00019178,2]
[357935441,1744601438723,-509.4602411,0.00019178,2]
[357935443,1744601438732,-510.10051536,0.00019178,2]
[357935445,1744601438742,-504.46457247,0.00019178,2]
[357935447,1744601438751,-500.0,0.00019178,2]
[357935449,1744601438761,-500.0,0.00019178,2]
[357935451,1744601438770,-500.0,0.00019178,2]
[357935453,1744601438779,-500.0,0.00019178,2]
[357935455,1744601438789,-500.0,0.00019178,2]
[357935457,1744601438798,-500.0,0.00019178,2]
[357935459,1744601438807,-500.0,0.00019178,2]
[357935461,1744601438816,-500.0,0.00019178,2]
[357935463,1744601438826,-509.83526668,0.00019178,2]
[357935465,1744601438835,-450.27903212,0.00019178,2]
[357935467,1744601438844,-500.0,0.00019178,2]
[357935469,1744601438854,-500.0,0.00019178,2]
[357935471,1744601438864,-500.0,0.00019178,2]
[357935473,1744601438873,-500.0,0.00019178,2]
[357935475,1744601438883,-501.14833431,0.00019178,2]
[357935477,1744601438893,-518.64,0.00019178,2]
[357935480,1744601438902,-500.97325563,0.00019178,2]
[357935481,1744601438912,-507.63393199,0.00019178,2]
[357935483,1744601438921,-500.0,0.00019178,2]
[357935485,1744601438931,-500.0,0.00019178,2]
[357935488,1744601438941,-504.58377439,0.00019178,2]
[357935489,1744601438950,-500.0,0.00019178,2]
[357935492,1744601438960,-500.0,0.00019178,2]
[357935494,1744601438971,-500.0,0.00019178,2]
[357935496,1744601438980,-500.0,0.00019178,2]
[357935498,1744601438990,-500.0,0.00019178,2]
[357935499,1744601438999,-513.25782378,0.00019178,2]
[357935501,1744601439009,-505.58832261,0.00019178,2]
[357935502,1744601439019,-500.0,0.00019178,2]
[357935505,1744601439030,-500.0,0.00019178,2]
[357935507,1744601439044,-500.0,0.00019178,2]
[357935509,1744601439054,-506.95338107,0.00019178,2]
[357935511,1744601439064,-500.0,0.00019178,2]
[357935513,1744601439074,-504.35406701,0.00019178,2]
[357935515,1744601439085,-500.0,0.00019178,2]
[357935517,1744601439095,-500.0,0.00019178,2]
[357935519,1744601439105,-500.0,0.00019178,2]
[357935522,1744601439119,-500.0,0.00019178,2]
[357935523,1744601439128,-500.0,0.00019178,2]
[357935525,1744601439137,-510.90787823,0.00019178,2]
[357935527,1744601439147,-500.0,0.00019178,2]
[357935530,1744601439157,-500.0,0.00019178,2]
[357935531,1744601439168,-500.0,0.00019178,2]
[357935534,1744601439180,-500.0,0.00019178,2]
[357935536,1744601439190,-502.39606494,0.00019178,2]
[357935537,1744601439199,-500.0,0.00019178,2]
[357935539,1744601439209,-503.7172172,0.00019178,2]
[357935541,1744601439219,-502.29551206,0.00019178,2]
[357935543,1744601439229,-505.05122693,0.00019178,2]
[357935545,1744601439238,-500.0,0.00019178,2]
[357935547,1744601439248,-500.0,0.00019178,2]
[357935549,1744601439259,-500.0,0.00019178,2]
[357935551,1744601439268,-500.0,0.00019178,2]
[357935553,1744601439278,-541.89432052,0.00019178,2]
[357935555,1744601439287,-500.0,0.00019178,2]
[357935557,1744601439296,-500.0,0.00019178,2]
[357935559,1744601439306,-500.0,0.00019178,2]
[357935561,1744601439316,-500.0,0.00019178,2]
[357935563,1744601439325,-500.0,0.00019178,2]
[357935565,1744601439335,-500.0,0.00019178,2]
[357935567,1744601439345,-500.0,0.00019178,2]
[357935569,1744601439355,-502.74909278,0.00019178,2]
[357935571,1744601439364,-520.00084837,0.00019178,2]
[357935573,1744601439373,-504.49137089,0.00019178,2]
[357935575,1744601439382,-575.23,0.00019178,2]
[357935577,1744601439392,-500.0,0.00019178,2]
[357935579,1744601439401,-500.0,0.00019178,2]
[357935581,1744601439411,-500.0,0.00019178,2]
[357935583,1744601439422,-500.94984639,0.00019178,2]
[357935585,1744601439431,-500.0,0.00019178,2]
[357935587,1744601439441,-500.0,0.00019178,2]
[357935589,1744601439451,-506.25694933,0.00019178,2]
[357935591,1744601439461,-513.5824133,0.00019178,2]
[357935593,1744601439470,-500.0,0.00019178,2]
[357935595,1744601439480,-503.35192993,0.00019178,2]
[357935597,1744601439490,-504.38968765,0.00019178,2]
[357935599,1744601439500,-502.46486143,0.00019178,2]
[357935601,1744601439509,-522.42625273,0.00019178,2]
[357935603,1744601439519,-522.08615888,0.00019178,2]
[357935605,1744601439528,-502.28342472,0.00019178,2]
[357935607,1744601439538,-507.47161904,0.00019178,2]
[357935609,1744601439548,-529.66998781,0.00019178,2]
[357935611,1744601439558,-506.1456171,0.00019178,2]
[357935613,1744601439567,-502.23411207,0.00019178,2]
[357935616,1744601439577,-505.82360696,0.00019178,2]
[357935618,1744601439586,-500.0,0.00019178,2]
[357935620,1744601439596,-500.0,0.00019178,2]
[357935622,1744601439605,-503.07654955,0.00019178,2]
[357935624,1744601439614,-559.98705869,0.00019178,2]
[357935625,1744601439624,-500.0,0.00019178,2]
[357935628,1744601439633,-505.92273399,0.00019178,2]
[357935630,1744601439642,-514.08480293,0.00019178,2]
[357935632,1744601439652,-504.40464685,0.00019178,2]
[357935634,1744601439661,-500.0,0.00019178,2]
[357935636,1744601439671,-514.47110817,0.00019178,2]
[357935638,1744601439680,-500.0,0.00019178,2]
[357935640,1744601439689,-500.0,0.00019178,2]
[357935642,1744601439699,-508.76426947,0.00019178,2]
[357935644,1744601439708,-542.75035116,0.00019178,2]
[357935646,1744601439717,-506.18927396,0.00019178,2]
[357935648,1744601439730,-500.0,0.00019178,2]
[357935651,1744601439740,-534.29350757,0.00019178,2]
[357935654,1744601439750,-502.84440588,0.00019178,2]
[357935656,1744601439759,-633.52245034,0.00019178,2]
[357935658,1744601439768,-500.0,0.00019178,2]
[357935660,1744601439777,-500.0,0.00019178,2]
[357935662,1744601439786,-504.68696409,0.00019178,2]
[357935664,1744601439796,-574.50011505,0.00019178,2]
[357935666,1744601439806,-516.58818088,0.00019178,2]
[357935668,1744601439815,-503.61069134,0.00019178,2]
[357935669,1744601439824,-529.57690599,0.00019178,2]
[357935671,1744601439834,-642.19638359,0.00019178,2]
[357935673,1744601439844,-500.0,0.00019178,2]
[357935675,1744601439853,-552.34,0.00019178,2]
[357935677,1744601439862,-504.6512416,0.00019178,2]
[357935679,1744601439872,-500.0,0.00019178,2]
[357935681,1744601439881,-529.28085514,0.00019178,2]
[357935683,1744601439891,-580.66482238,0.00019178,2]
[357935685,1744601439900,-500.0,0.00019178,2]
[357935687,1744601439911,-566.31403218,0.00019178,2]
[357935689,1744601439921,-500.46679976,0.00019178,2]
[357935691,1744601439930,-500.0,0.00019178,2]
[357935693,1744601439939,-500.0,0.00019178,2]
[357935695,1744601439949,-503.91531705,0.00019178,2]
[357935697,1744601439959,-500.0,0.00019178,2]
[357935699,1744601439968,-500.0,0.00019178,2]
[357935701,1744601439978,-503.28849273,0.00019178,2]
[357935703,1744601439987,-507.32447413,0.00019178,2]
[357935705,1744601439996,-500.0,0.00019178,2]
[357935707,1744601440006,-513.6875258,0.00019178,2]
[357935709,1744601440015,-500.0,0.00019178,2]
[357935711,1744601440025,-524.63404989,0.00019178,2]
[357935713,1744601440035,-506.62577607,0.00019178,2]
[357935715,1744601440044,-500.0,0.00019178,2]
[357935717,1744601440053,-500.0,0.00019178,2]
[357935719,1744601440063,-500.0,0.00019178,2]
[357935721,1744601440073,-501.70734782,0.00019178,2]
[357935723,1744601440082,-500.0,0.00019178,2]
[357935725,1744601440092,-500.0,0.00019178,2]
[357935727,1744601440101,-500.0,0.00019178,2]
[357935729,1744601440113,-500.0,0.00019178,2]
[357935731,1744601440122,-504.25568417,0.00019178,2]
[357935733,1744601440131,-500.0,0.00019178,2]
[357935735,1744601440141,-539.76,0.00019178,2]
[357935737,1744601440151,-572.53742257,0.00019178,2]
[357935739,1744601440160,-502.68892414,0.00019178,2]
[357935741,1744601440173,-571.56307537,0.00019178,2]
[357935743,1744601440182,-564.453578,0.00019178,2]
[357935745,1744601440191,-500.0,0.00019178,2]
[357935747,1744601440201,-558.56244935,0.00019178,2]
[357935749,1744601440211,-505.64833474,0.00019178,2]
[357935751,1744601440220,-560.72790628,0.00019178,2]
[357935753,1744601440229,-500.0,0.00019178,2]
[357935755,1744601440239,-521.38186262,0.00019178,2]
[357935757,1744601440249,-503.77203762,0.00019178,2]
[357935759,1744601440258,-541.75953092,0.00019178,2]
[357935761,1744601440267,-500.0,0.00019178,2]
[357935762,1744601440276,-500.0,0.00019178,2]
[357935764,1744601440285,-500.0,0.00019178,2]
[357935766,1744601440294,-500.47592392,0.00019178,2]
[357935768,1744601440304,-505.98136559,0.00019178,2]
[357935770,1744601440313,-554.33386073,0.00019178,2]
[357935772,1744601440322,-506.48594439,0.00019178,2]
[357935774,1744601440332,-509.80416504,0.00019178,2]
[357935775,1744601440341,-567.92942306,0.00019178,2]
[357935776,1744601440350,-505.78275868,0.00019178,2]
[357935777,1744601440359,-500.0,0.00019178,2]
[357935778,1744601440368,-545.65487686,0.00019178,2]
[357935779,1744601440377,-501.86357277,0.00019178,2]
[357935780,1744601440387,-500.0,0.00019178,2]
[357935781,1744601440396,-547.22802066,0.00019178,2]
[357935782,1744601440405,-331.40789487,0.00019178,2]
[357935783,1744601440414,-509.04554293,0.00019178,2]
[357935784,1744601440423,-502.63140376,0.00019178,2]
[357935785,1744601440432,-503.15740266,0.00019178,2]
[357935786,1744601440441,-500.0,0.00019178,2]
[357935787,1744601440450,-576.51323984,0.00019178,2]
[357935788,1744601440459,-500.0,0.00019178,2]
[357935789,1744601440468,-531.9,0.00019178,2]
[357935790,1744601440477,-507.14253645,0.00019178,2]
[357935791,1744601440487,-537.06304719,0.00019178,2]
[357935792,1744601440497,-624.2793043,0.00019178,2]
[357935793,1744601440506,-500.0,0.00019178,2]
[357935794,1744601440515,-560.44197647,0.00019178,2]
[357935796,1744601440524,-500.0,0.00019178,2]
[357935798,1744601440534,-551.63669366,0.00019178,2]
[357935800,1744601440544,-501.77840967,0.00019178,2]
[357935802,1744601440554,-567.19685884,0.00019178,2]
[357935804,1744601440563,-540.94462221,0.00019178,2]
[357935806,1744601440574,-501.33695362,0.00019178,2]
[357935808,1744601440583,-529.82867513,0.00019178,2]
[357935810,1744601440592,-507.5415268,0.00019178,2]
[357935812,1744601440602,-511.47528564,0.00019178,2]
[357935814,1744601440611,-524.48685617,0.00019178,2]
[357935816,1744601440621,-507.24349438,0.00019178,2]
[357935818,1744601440630,-516.33583586,0.00019178,2]
[357935820,1744601440639,-524.77173414,0.00019178,2]
[357935821,1744601440648,-500.0,0.00019178,2]
[357935823,1744601440658,-517.96113907,0.00019178,2]
[357935825,1744601440667,-500.0,0.00019178,2]
[357935826,1744601440677,-522.82652866,0.00019178,2]
[357935827,1744601440687,-501.86339107,0.00019178,2]
[357935828,1744601440697,-500.0,0.00019178,2]
[357935829,1744601440707,-517.1034608,0.00019178,2]
[357935830,1744601440716,-501.10724186,0.00019178,2]
[357935831,1744601440726,-506.69869191,0.00019178,2]
[357935832,1744601440736,-540.75403116,0.00019178,2]
[357935833,1744601440745,-500.0,0.00019178,2]
[357935834,1744601440755,-528.77276104,0.00019178,2]
[357935835,1744601440765,-502.17278543,0.00019178,2]
[357935837,1744601440774,-529.10588919,0.00019178,2]
[357935839,1744601440783,-519.64076073,0.00019178,2]
[357935841,1744601440793,-502.23443469,0.00019178,2]
[357935842,1744601440802,-640.67700272,0.00019178,2]
[357935844,1744601440812,-527.27386576,0.00019178,2]
[357935845,1744601440821,-506.10983821,0.00019178,2]
[357935846,1744601440830,-507.08544362,0.00019178,2]
[357935847,1744601440839,-501.43575432,0.00019178,2]
[357935848,1744601440849,-623.04229039,0.00019178,2]
[357935849,1744601440859,-500.0,0.00019178,2]
[357935850,1744601440869,-508.78367051,0.00019178,2]
[357935851,1744601441114,-527.81210294,0.00019178,2]
[357935852,1744601441127,-502.75665718,0.00019178,2]
[357935853,1744601441140,-509.47900133,0.00019178,2]
[357935854,1744601441155,-506.5733595,0.00019178,2]
[357935855,1744601441164,-532.52345516,0.00019178,2]
[357935856,1744601441179,-510.07237501,0.00019178,2]
[357935857,1744601441190,-418.31610173,0.00019178,2]
[357935858,1744601441200,-500.90587909,0.00019178,2]
[357935859,1744601441211,-525.26980755,0.00019178,2]
[357935860,1744601441221,-500.0,0.00019178,2]
[357935861,1744601441231,-500.0,0.00019178,2]
[357935862,1744601441241,-496.89875919,0.00019178,2]
[357935863,1744601441251,-551.01156463,0.00019178,2]
[357935864,1744601441261,-523.84596405,0.00019178,2]
[357935865,1744601441272,-502.24966593,0.00019178,2]
[357935866,1744601441282,-502.61555746,0.00019178,2]
[357935867,1744601441292,-504.7013023,0.00019178,2]
[357935868,1744601441302,-501.38654533,0.00019178,2]
[357935869,1744601441317,-502.56344051,0.00019178,2]
[357935870,1744601441326,-523.86872592,0.00019178,2]
[357935871,1744601441336,-500.0,0.00019178,2]
[357935872,1744601441345,-500.0,0.00019178,2]
[357935873,1744601441355,-500.00156576,0.00019178,2]
[357935874,1744601441364,-503.93253577,0.00019178,2]
[357935875,1744601441374,-503.79704372,0.00019178,2]
[357935876,1744601441384,-503.36693648,0.00019178,2]
[357935877,1744601441393,-505.0296058,0.00019178,2]
[357935878,1744601441403,-511.25971261,0.00019178,2]
[357935879,1744601441414,-500.0,0.00019178,2]
[357935880,1744601441423,-500.84814911,0.00019178,2]
[357935881,1744601441433,-553.78735654,0.00019178,2]
[357935882,1744601441443,-530.17100391,0.00019178,2]
[357935883,1744601441453,-500.0,0.00019178,2]
[357935884,1744601441462,-525.61968804,0.00019178,2]
[357935885,1744601441472,-512.35933118,0.00019178,2]
[357935886,1744601441482,-500.0,0.00019178,2]
[357935887,1744601441492,-507.84583997,0.00019178,2]
[357935888,1744601441502,-501.1978616,0.00019178,2]
[357935889,1744601441511,-502.31274402,0.00019178,2]
[357935890,1744601441521,-543.46724178,0.00019178,2]
[357935891,1744601441530,-514.81936754,0.00019178,2]
[357935892,1744601441539,-404.45164049,0.00019178,2]
[357935893,1744601441549,-508.90938662,0.00019178,2]
[357935894,1744601441559,-510.562515,0.00019178,2]
[357935895,1744601441568,-523.16666757,0.00019178,2]
[357935896,1744601441578,-524.88150037,0.00019178,2]
[357935897,1744601441587,-518.79165183,0.00019178,2]
[357935898,1744601441596,-530.01031298,0.00019178,2]
[357935899,1744601441607,-508.66521848,0.00019178,2]
[357935900,1744601441617,-505.51996353,0.00019178,2]
[357935901,1744601441626,-527.67813584,0.00019178,2]
[357935902,1744601441636,-532.98134001,0.00019178,2]
[357935903,1744601441645,-525.02916713,0.00019178,2]
[357935904,1744601441654,-503.78562837,0.00019178,2]
[357935905,1744601441664,-512.39868009,0.00019178,2]
[357935906,1744601441674,-500.0,0.00019178,2]
[357935907,1744601441683,-507.04024845,0.00019178,2]
[357935908,1744601441692,-519.39316378,0.00019178,2]
[357935909,1744601441703,-528.7428724,0.00019178,2]
[357935910,1744601441712,-505.70924157,0.00019178,2]
[357935911,1744601441722,-500.0,0.00019178,2]
[357935912,1744601441731,-539.47460446,0.00019178,2]
[357935913,1744601441741,-500.0,0.00019178,2]
[357935914,1744601441751,-516.79043411,0.00019178,2]
[357935915,1744601441760,-651.99,0.00019178,2]
[357935916,1744601441769,-520.58721162,0.00019178,2]
[357935917,1744601441778,-500.0,0.00019178,2]
[357935918,1744601441788,-510.25170695,0.00019178,2]
[357935919,1744601441797,-509.17553077,0.00019178,2]
[357935920,1744601441807,-517.39040202,0.00019178,2]
[357935921,1744601441816,-556.69553285,0.00019178,2]
[357935922,1744601441826,-519.23454273,0.00019178,2]
[357935923,1744601441835,-500.0,0.00019178,2]
[357935924,1744601441845,-593.97085397,0.00019178,2]
[357935925,1744601441854,-500.0,0.00019178,2]
[357935926,1744601441863,-505.47638454,0.00019178,2]
[357935927,1744601441872,-500.0,0.00019178,2]
[357935928,1744601441881,-500.0,0.00019178,2]
[357935929,1744601441890,-500.0,0.00019178,2]
[357935930,1744601441900,-500.0,0.00019178,2]
[357935931,1744601441910,-500.0,0.00019178,2]
[357935932,1744601441920,-524.45180851,0.00019178,2]
[357935933,1744601441930,-327.25964856,0.00019178,2]
[357935934,1744601441940,-514.22343066,0.00019178,2]
[357935935,1744601441950,-554.98,0.00019178,2]
[357935936,1744601441960,-563.9953371,0.00019178,2]
[357935937,1744601441969,-500.0,0.00019178,2]
[357935938,1744601441979,-285.02979673,0.00019178,2]
[357935939,1744601441988,-519.05799854,0.00019178,2]
[357935940,1744601441998,-500.0,0.00019178,2]
[357935941,1744601442007,-519.4981613,0.00019178,2]
[357935942,1744601442017,-500.0,0.00019178,2]
[357935943,1744601442026,-500.0,0.00019178,2]
[357935944,1744601442036,-551.57199713,0.00019178,2]
[357935945,1744601442045,-500.0,0.00019178,2]
[357935946,1744601442054,-500.0,0.00019178,2]
[357935947,1744601442064,-508.98537834,0.00019178,2]
[357935948,1744601442073,-500.0,0.00019178,2]
[357935949,1744601442083,-506.58120117,0.00019178,2]
[357935950,1744601442093,-570.80055887,0.00019178,2]
[357935951,1744601442103,-521.76999758,0.00019178,2]
[357935952,1744601442112,-507.71554151,0.00019178,2]
[357935953,1744601442121,-500.0,0.00019178,2]
[357935954,1744601442130,-501.5910522,0.00019178,2]
[357935955,1744601442140,-508.47591617,0.00019178,2]
[357935956,1744601442149,-515.15018008,0.00019178,2]
[357935957,1744601442158,-519.4828822,0.00019178,2]
[357935958,1744601442172,-511.66834907,0.00019178,2]
[357935959,1744601442181,-510.85993976,0.00019178,2]
[357935960,1744601442191,-501.3643911,0.00019178,2]
[357935961,1744601442200,-500.0,0.00019178,2]
[357935962,1744601442211,-505.1020402,0.00019178,2]
[357935963,1744601442220,-535.24668013,0.00019178,2]
[357935964,1744601442230,-510.44785236,0.00019178,2]
[357935965,1744601442239,-526.76812713,0.00019178,2]
[357935966,1744601442248,-536.5380827,0.00019178,2]
[357935967,1744601442258,-504.97448752,0.00019178,2]
[357935968,1744601442267,-500.0,0.00019178,2]
[357935969,1744601442276,-520.12344015,0.00019178,2]
[357935970,1744601442285,-514.74498047,0.00019178,2]
[357935971,1744601442295,-501.2013339,0.00019178,2]
[357935972,1744601442306,-516.27354748,0.00019178,2]
[357935973,1744601442319,-513.88955592,0.00019178,2]
[357935974,1744601442328,-551.17930784,0.00019178,2]
[357935975,1744601442336,-521.18383895,0.00019178,2]
[357935976,1744601442346,-500.0,0.00019178,2]
[357935977,1744601442355,-500.0,0.00019178,2]
[357935978,1744601442365,-510.97577406,0.00019178,2]
[357935979,1744601442374,-516.54017498,0.00019178,2]
[357935980,1744601442383,-510.1790087,0.00019178,2]
[357935981,1744601442393,-535.68971105,0.00019178,2]
[357935982,1744601442402,-505.83349911,0.00019178,2]
[357935983,1744601442412,-994.27,0.00019178,2]
[357935984,1744601442421,-521.97099685,0.00019178,2]
[357935985,1744601442431,-500.0,0.00019178,2]
[357935986,1744601442440,-507.33998034,0.00019178,2]
[357935987,1744601442449,-528.47305493,0.00019178,2]
[357935988,1744601442459,-524.18501747,0.00019178,2]
[357935989,1744601442468,-274.02016741,0.00019178,2]
[357935990,1744601442477,-500.0,0.00019178,2]
[357935991,1744601442486,-524.6937429,0.00019178,2]
[357935992,1744601442495,-525.2701013,0.00019178,2]
[357935993,1744601442504,-508.09569132,0.00019178,2]
[357935994,1744601442513,-520.3212046,0.00019178,2]
[357935995,1744601442522,-529.2465344,0.00019178,2]
[357935996,1744601442531,-506.21047242,0.00019178,2]
[357935998,1744601442545,-525.34606674,0.00019178,2]
[357936000,1744601442555,-500.0,0.00019178,2]
[357936002,1744601442565,-508.10699839,0.00019178,2]
[357936004,1744601442575,-540.72522192,0.00019178,2]
[357936006,1744601442584,-500.0,0.00019178,2]
[357936007,1744601442594,-509.2321897,0.00019178,2]
[357936008,1744601442604,-516.98397993,0.00019178,2]
[357936009,1744601442614,-513.83854069,0.00019178,2]
[357936010,1744601442624,-500.0,0.00019178,2]
[357936011,1744601442633,-512.14383924,0.00019178,2]
[357936012,1744601442642,-557.88349203,0.00019178,2]
[357936013,1744601442651,-500.0,0.00019178,2]
[357936014,1744601442660,-500.0,0.00019178,2]
[357936015,1744601442670,-500.0,0.00019178,2]
[357936016,1744601442679,-500.0,0.00019178,2]
[357936017,1744601442688,-533.75580119,0.00019178,2]
[357936018,1744601442698,-524.88,0.00019178,2]
[357936019,1744601442707,-502.71006895,0.00019178,2]
[357936020,1744601442717,-500.0,0.00019178,2]
[357936021,1744601442726,-386.85757792,0.00019178,2]
[357936022,1744601442736,-523.22012514,0.00019178,2]
[357936023,1744601442745,-500.0,0.00019178,2]
[357936024,1744601442754,-328.61112628,0.00019178,2]
[357936025,1744601442763,-502.91797523,0.00019178,2]
[357936026,1744601442773,-527.29652501,0.00019178,2]
[357936027,1744601442782,-523.95203995,0.00019178,2]
[357936028,1744601442791,-500.0,0.00019178,2]
[357936029,1744601442800,-514.17132094,0.00019178,2]
[357936031,1744601442810,-540.40368677,0.00019178,2]
[357936032,1744601442820,-508.24255842,0.00019178,2]
[357936034,1744601442829,-500.0,0.00019178,2]
[357936036,1744601442838,-516.5271279,0.00019178,2]
[357936038,1744601442848,-512.50121442,0.00019178,2]
[357936040,1744601442858,-500.0,0.00019178,2]
[357936041,1744601442867,-623.94551059,0.00019178,2]
[357936042,1744601442877,-509.35073086,0.00019178,2]
[357936043,1744601442888,-500.0,0.00019178,2]
[357936044,1744601442899,-151.0,0.00019178,2]
[357936045,1744601442908,-514.39416552,0.00019178,2]
[357936046,1744601442917,-505.32170905,0.00019178,2]
[357936047,1744601442927,-500.0,0.00019178,2]
[357936048,1744601442937,-523.51512915,0.00019178,2]
[357936049,1744601442946,-500.0,0.00019178,2]
[357936050,1744601442955,-500.0,0.00019178,2]
[357936051,1744601442965,-500.0,0.00019178,2]
[357936052,1744601442974,-510.68202865,0.00019178,2]
[357936053,1744601442984,-529.57403713,0.00019178,2]
[357936054,1744601442993,-501.80655833,0.00019178,2]
[357936055,1744601443003,-533.18965802,0.00019178,2]
[357936056,1744601443012,-500.0,0.00019178,2]
[357936057,1744601443022,-500.0,0.00019178,2]
[357936058,1744601443031,-521.71741206,0.00019178,2]
[357936059,1744601443042,-531.94314492,0.00019178,2]
[357936060,1744601443051,-505.88128102,0.00019178,2]
[357936061,1744601443061,-500.0,0.00019178,2]
[357936062,1744601443071,-529.83633033,0.00019178,2]
[357936063,1744601443080,-552.90320286,0.00019178,2]
[357936064,1744601443090,-512.39878095,0.00019178,2]
[357936065,1744601443099,-500.0,0.00019178,2]
[357936066,1744601443110,-517.23429497,0.00019178,2]
[357936067,1744601443119,-500.0,0.00019178,2]
[357936068,1744601443128,-151.0,0.00019178,2]
[357936069,1744601443138,-517.0519103,0.00019178,2]
[357936070,1744601443147,-500.0,0.00019178,2]
[357936071,1744601443157,-536.01507649,0.00019178,2]
[357936072,1744601443166,-500.0,0.00019178,2]
[357936073,1744601443178,-500.0,0.00019178,2]
[357936074,1744601443188,-508.21268703,0.00019178,2]
[357936075,1744601443197,-500.0,0.00019178,2]
[357936076,1744601443207,-500.0,0.00019178,2]
[357936077,1744601443216,-500.0,0.00019178,2]
[357936078,1744601443226,-516.86040785,0.00019178,2]
[357936079,1744601443235,-164.729142,0.00019178,2]